bitfinex-derivatives/quotes_SOLF0:USTF0_20250325
["timestamp","ask_amount","ask_price","bid_price","bid_amount"]
[1742932952777,0.05124623,144.74,144.72,6.909]
[1742932953487,0.05124623,144.74,144.73,6.9085]
[1742932953779,0.05124623,144.74,144.72,6.9088]
[1742932954287,0.05124623,144.74,144.7,24.98]
[1742932954482,0.05124623,144.74,144.73,6.9085]
[1742932962990,0.05124623,144.74,144.72,6.9088]
[1742932963492,0.05124623,144.74,144.73,6.9085]
[1742932969694,0.05124623,144.74,144.65,227.78]
[1742932969894,10.38855636,144.76,144.66,24.84]
[1742932970093,0.0438397,144.71,144.66,24.84]
[1742932970398,24.9,144.75,144.68,6.9107]
[1742932970696,24.9,144.75,144.66,24.84]
[1742932970895,0.05321022,144.73,144.66,24.84]
[1742932971199,0.05321022,144.73,144.65,227.78]
[1742932971405,0.05321022,144.73,144.66,24.9]
[1742932971889,6.9092,144.72,144.68,6.9105]
[1742932974499,6.9096,144.71,144.68,6.9105]
[1742932974701,0.05321022,144.73,144.67,6.9112]
[1742932974901,6.9097,144.71,144.66,24.9]
[1742932975106,6.95796002,144.71,144.66,24.9]
[1742932975399,6.95796002,144.71,144.68,6.9106]
[1742932976095,6.91,144.7,144.68,6.9106]
[1742932977101,6.95796002,144.71,144.69,6.9104]
[1742932977292,6.95796002,144.71,144.66,24.9]
[1742932977697,6.95796002,144.71,144.68,6.9106]
[1742932978299,6.91,144.7,144.67,6.9112]
[1742932978602,6.91,144.7,144.66,24.9]
[1742932978801,6.95796002,144.71,144.66,24.9]
[1742932978998,6.95796002,144.71,144.68,6.9106]
[1742932979703,6.95796002,144.71,144.69,6.9103]
[1742932980399,0.04826002,144.71,144.65,227.78]
[1742932980604,0.04826002,144.71,144.66,24.82]
[1742932981502,6.9112,144.68,144.65,234.6919]
[1742932981700,6.9112,144.68,144.65,259.5119]
[1742932981901,0.04992388,144.68,144.66,6.9117]
[1742932982102,0.04992388,144.68,144.65,252.6]
[1742932982504,6.96112388,144.68,144.65,259.5119]
[1742932983206,6.96112388,144.68,144.65,234.6919]
[1742932983406,6.96112388,144.68,144.65,259.5119]
[1742932983603,0.04992388,144.68,144.66,6.9119]
[1742932984806,0.04992388,144.68,144.65,252.6]
[1742932986314,0.04992388,144.68,144.67,6.9114]
[1742932986713,0.04992388,144.68,144.66,6.9117]
[1742932989816,6.96092388,144.68,144.66,6.9117]
[1742932990217,6.96092388,144.68,144.65,259.512]
[1742932990511,6.9117,144.67,144.65,252.6]
[1742932990716,0.04992388,144.68,144.65,252.6]
[1742932990918,0.04992388,144.68,144.65,24.82]
[1742932991117,6.9117,144.67,144.65,24.82]
[1742932991314,0.04992388,144.68,144.65,24.82]
[1742932991517,6.9128,144.65,144.62,24.82]
[1742932991710,10.38855636,144.7,144.59,227.98]
[1742932991916,0.04913467,144.65,144.6,24.82]
[1742932992118,6.9136,144.63,144.6,24.82]
[1742932992323,0.04913467,144.65,144.6,24.82]
[1742932992511,6.9138,144.63,144.6,31.7345]
[1742932993319,6.9138,144.62,144.6,31.7345]
[1742932993522,6.9138,144.62,144.6,6.9145]
[1742932993918,6.9135,144.63,144.6,6.9145]
[1742932994113,6.9135,144.63,144.59,252.8]
[1742932994114,0.04913467,144.65,144.59,227.98]
[1742932994621,6.9143,144.61,144.59,227.98]
[1742932994822,24.82,144.67,144.59,6.9152]
[1742932995119,0.04415114,144.61,144.59,6.9152]
[1742932995316,6.9134,144.63,144.59,6.9152]
[1742932995519,6.9134,144.63,144.58,6.9155]
[1742932995919,6.9134,144.63,144.57,24.82]
[1742932996421,0.04957742,144.64,144.57,24.84]
[1742932996821,6.9141,144.62,144.58,6.9155]
[1742932997017,0.04957742,144.64,144.57,24.84]
[1742932997218,6.9129,144.64,144.6,6.9144]
[1742932997417,0.05207015,144.62,144.6,6.9144]
[1742932998218,0.05207015,144.62,144.57,24.84]
[1742932998519,0.05207015,144.62,144.55,24.86]
[1742932998720,6.9155,144.59,144.56,6.9164]
[1742932999721,6.96601722,144.6,144.57,6.9161]
[1742933000421,0.05101722,144.6,144.58,6.9157]
[1742933000624,0.05101722,144.6,144.53,252.84]
[1742933001021,6.9153,144.59,144.56,6.9164]
[1742933001417,6.9153,144.59,144.49,0.76891163]
[1742933001418,24.86,144.59,144.49,0.76891163]
[1742933001618,35.24855636,144.59,144.49,25.62891163]
[1742933001926,0.0497908,144.55,144.49,25.62891163]
[1742933002121,6.9671908,144.55,144.51,6.9189]
[1742933002324,0.0497908,144.55,144.49,25.62891163]
[1742933002725,6.9669908,144.55,144.51,6.9187]
[1742933003112,6.9669908,144.55,144.49,25.62891163]
[1742933003319,0.0497908,144.55,144.49,25.62891163]
[1742933003720,6.9670908,144.55,144.51,6.9189]
[1742933004021,0.0497908,144.55,144.49,25.62891163]
[1742933004923,6.918,144.54,144.51,6.919]
[1742933005226,0.0497908,144.55,144.49,25.62891163]
[1742933005424,0.0497908,144.55,144.52,6.9183]
[1742933005824,0.0497908,144.55,144.49,25.62891163]
[1742933006024,0.0497908,144.55,144.53,6.918]
[1742933007331,6.9669908,144.55,144.53,6.918]
[1742933008122,6.9669908,144.55,144.49,25.62891163]
[1742933008327,0.0497908,144.55,144.52,6.9184]
[1742933008530,0.0497908,144.55,144.49,25.62891163]
[1742933009231,0.0497908,144.55,144.54,6.9176]
[1742933009729,0.0497908,144.55,144.53,31.7579]
[1742933009928,0.0497908,144.55,144.53,24.84]
[1742933010429,6.9671908,144.55,144.53,24.84]
[1742933010630,0.0497908,144.55,144.53,24.84]
[1742933011728,6.9671908,144.55,144.53,24.84]
[1742933012026,1.20392313,144.67,144.55,358.0]
[1742933012232,114.58034618,144.73,144.6,10.38855636]
[1742933012431,114.58034618,144.73,144.61,26.02]
[1742933012731,114.58034618,144.73,144.61,26.04]
[1742933012732,10.38855636,144.71,144.61,26.04]
[1742933012932,92.85682053,144.72,144.61,26.04]
[1742933013121,76.60010144,144.72,144.61,26.04]
[1742933013322,0.04709198,144.68,144.65,0.0459746]
[1742933013531,0.04709198,144.68,144.67,6.9114]
[1742933013933,76.60010144,144.72,144.65,26.0659746]
[1742933014135,76.60010144,144.72,144.7,6.9096]
[1742933014436,76.60010144,144.72,144.69,26.24]
[1742933014634,76.60010144,144.72,144.71,6.9095]
[1742933016536,0.053075,144.73,144.72,6.909]
[1742933017434,0.053075,144.73,144.7,0.04530469]
[1742933017435,6.9053,144.8,144.75,6.9074]
[1742933017635,1.38131086,144.79,144.75,6.9074]
[1742933018634,0.04868478,144.78,144.76,0.05215713]
[1742933018834,1.38150169,144.77,144.76,0.05215713]
[1742933019230,1.38150169,144.77,144.76,6.95925713]
[1742933019430,1.38150169,144.77,144.76,0.05215713]
[1742933021335,0.04868478,144.78,144.76,0.05215713]
[1742933021535,6.9066,144.77,144.76,0.05215713]
[1742933021933,6.9076,144.75,144.7,6.9096]
[1742933022137,6.9076,144.75,144.71,26.12]
[1742933022546,6.9085,144.74,144.69,33.0303]
[1742933023052,0.04611605,144.73,144.7,6.95655345]
[1742933023448,6.95471605,144.73,144.7,0.04665345]
[1742933024347,0.04611605,144.73,144.7,0.04665345]
[1742933024542,0.04611605,144.73,144.7,6.95635345]
[1742933024748,6.95491605,144.73,144.7,0.04665345]
[1742933025339,0.04611605,144.73,144.7,6.95645345]
[1742933026147,0.04611605,144.73,144.71,6.9094]
[1742933026546,0.04611605,144.73,144.7,0.04665345]
[1742933028252,6.9095,144.71,144.7,0.04665345]
[1742933028948,6.9095,144.71,144.58,16.25671909]
[1742933028949,0.04611605,144.73,144.59,227.98]
[1742933029256,26.04,144.74,144.6,26.02]
[1742933029450,6.9123,144.66,144.62,6.9136]
[1742933029747,26.02,144.69,144.62,6.9136]
[1742933030253,0.04526417,144.67,144.64,0.05189848]
[1742933030446,6.9119,144.66,144.64,0.05189848]
[1742933030752,0.04526417,144.67,144.64,0.05189848]
[1742933031554,6.9119,144.66,144.64,0.05189848]
[1742933031849,26.02526417,144.67,144.64,0.05189848]
[1742933032453,6.9119,144.66,144.64,0.05189848]
[1742933036758,6.95676417,144.67,144.64,6.96459848]
[1742933038057,6.9119,144.66,144.64,0.05189848]
[1742933042059,6.9124,144.65,144.64,0.05189848]
[1742933044667,0.04526417,144.67,144.64,0.05189848]
[1742933044861,0.04526417,144.67,144.64,25.83189848]
[1742933045363,0.04526417,144.67,144.66,6.9119]
[1742933045663,13.8124,144.78,144.64,25.83189848]
[1742933045966,25.8,144.76,144.65,10.3982658]
[1742933046765,0.05246772,144.72,144.69,0.04747832]
[1742933046959,0.05246772,144.72,144.71,6.9095]
[1742933059172,16.23333226,144.85,144.69,25.84747832]
[1742933059371,25.6,144.84,144.69,25.8]
[1742933060071,6.9069,144.77,144.74,6.9077]
[1742933060274,6.9069,144.77,144.75,0.05318217]
[1742933062270,6.95210712,144.78,144.75,6.96078217]
[1742933062475,0.04570712,144.78,144.75,0.05318217]
[1742933062975,6.9067,144.77,144.75,0.05318217]
[1742933063569,6.9067,144.77,144.75,6.96068217]
[1742933064278,6.9067,144.77,144.75,0.05318217]
[1742933066477,6.9067,144.77,144.75,6.96068217]
[1742933066778,6.95200712,144.78,144.75,6.96068217]
[1742933068478,6.95200712,144.78,144.76,6.907]
[1742933068775,0.04570712,144.78,144.75,0.05318217]
[1742933069175,366.38205589,144.88,144.75,0.05318217]
[1742933069373,6.904,144.83,144.73,25.6]
[1742933069776,6.904,144.83,144.8,6.9049]
[1742933070280,6.904,144.83,144.79,6.9054]
[1742933070579,6.9043,144.82,144.8,0.05288964]
[1742933070980,0.04390525,144.83,144.8,0.05288964]
[1742933071481,0.04390525,144.83,144.8,6.95778964]
[1742933071682,0.04390525,144.83,144.8,0.05288964]
[1742933074785,0.04390525,144.83,144.8,6.95808964]
[1742933075182,0.04390525,144.83,144.8,0.05288964]
[1742933075985,6.9043,144.82,144.8,0.05288964]
[1742933076688,6.9047,144.81,144.8,0.05288964]
[1742933077788,94.55779789,144.95,144.8,6.95288964]
[1742933078083,280.56916488,145.01,144.94,10.38205589]
[1742933078282,280.56916488,145.01,144.97,6.8968]
[1742933078487,280.56916488,145.01,144.98,27.3]
[1742933078680,44.07453988,144.99,144.98,27.3]
[1742933078878,44.07453988,144.99,144.95,227.84]
[1742933079078,44.07453988,144.99,144.97,0.0505859]
[1742933080080,193.9521778,145.0,144.97,10.43264179]
[1742933080277,164.76715373,145.0,144.99,10.38205589]
[1742933080489,6.886e-05,145.0,144.99,17.28205589]
[1742933080890,362.8899,145.13,145.03,6.894]
[1742933081090,27.38,145.14,145.04,27.36]
[1742933081284,27.38,145.14,145.03,27.38]
[1742933081489,6.8909,145.1,145.03,27.36]
[1742933081694,27.38,145.14,145.03,27.36]
[1742933081885,190.25045496,145.16,145.03,27.36]
[1742933082190,0.04415162,145.1,145.07,0.04856936]
[1742933082389,27.34,145.15,145.04,55.27037167]
[1742933082789,0.04707983,145.1,145.07,0.04878634]
[1742933083492,0.04707983,145.1,145.08,55.27037167]
[1742933083688,13.18323653,145.15,145.08,55.27037167]
[1742933084491,6.8895,145.13,145.08,95.56452959]
[1742933084794,27.32373492,145.13,145.1,0.04844369]
[1742933085592,34.21373492,145.13,145.1,0.04844369]
[1742933085888,34.21373492,145.13,145.12,234.71952954]
[1742933086095,27.22,145.14,145.1,0.04844369]
[1742933086884,6.8904,145.11,145.1,0.04844369]
[1742933087085,27.22,145.14,145.1,0.04844369]
[1742933087281,27.22,145.14,145.12,55.27037167]
[1742933087484,6.94248351,145.13,145.12,55.27037167]
[1742933087988,13.84248351,145.13,145.12,55.27037167]
[1742933088192,27.18,145.15,145.12,55.27037167]
[1742933088886,27.18,145.15,145.11,112.54106443]
[1742933089095,27.18,145.15,145.04,6.8933]
[1742933089284,0.04488333,145.11,145.08,0.04386619]
[1742933089688,6.93548333,145.11,145.08,0.04386619]
[1742933091596,0.04488333,145.11,145.08,0.04386619]
[1742933091799,27.1,145.1,145.0,37.45009058]
[1742933091993,6.8938,145.04,144.95,265.29009058]
[1742933092199,27.12,145.05,144.95,299.31009058]
[1742933092398,27.14,145.06,145.01,6.8949]
[1742933092599,27.14,145.06,144.95,292.41009058]
[1742933092794,27.16,145.1,144.95,292.41009058]
[1742933092990,27.16,145.1,144.99,0.0457445]
[1742933093195,0.04625907,145.04,145.0,27.16]
[1742933093398,0.04625907,145.04,145.01,0.04970668]
[1742933093798,0.04625907,145.04,145.03,6.8942]
[1742933093997,0.04625907,145.04,145.01,6.94970668]
[1742933095003,6.94005907,145.04,145.01,6.94970668]
[1742933095205,6.94005907,145.04,145.01,0.04970668]
[1742933096802,0.04625907,145.04,145.01,0.04970668]
[1742933097392,6.94025907,145.04,145.01,0.04970668]
[1742933097598,0.04625907,145.04,145.01,0.04970668]
[1742933098108,0.04625907,145.04,145.02,6.8947]
[1742933098802,0.04625907,145.04,145.03,6.8942]
[1742933099913,0.04625907,145.04,145.02,6.8946]
[1742933100704,0.04625907,145.04,145.01,6.94470668]
[1742933101304,6.94005907,145.04,145.01,6.94470668]
[1742933101504,0.04625907,145.04,145.01,6.94970668]
[1742933101808,6.8947,145.02,145.01,0.04970668]
[1742933102006,0.04625907,145.04,144.96,6.8974]
[1742933102209,27.12,145.06,144.95,6.9]
[1742933102410,16.15492046,145.09,144.95,6.9]
[1742933102603,382.96,145.08,144.95,13.7978]
[1742933103309,6.8967,144.98,144.95,13.7978]
[1742933103710,6.94883744,144.98,144.95,13.846937]
[1742933106008,6.94883744,144.98,144.96,6.8975]
[1742933106214,6.8971,144.97,144.96,6.9]
[1742933106416,0.05213744,144.98,144.96,6.9]
[1742933106909,6.8976,144.96,144.95,0.049137]
[1742933107105,6.8976,144.96,144.95,6.949137]
[1742933111715,6.8976,144.96,144.95,0.049137]
[1742933111910,6.8976,144.96,144.95,3.7e-05]
[1742933112214,6.9009,144.89,144.86,26.76]
[1742933112413,26.76,144.94,144.86,26.76]
[1742933112714,6.9007,144.9,144.87,6.9016]
[1742933113118,26.76,144.94,144.87,6.9]
[1742933113311,13.794,144.98,144.87,6.9]
[1742933113312,0.04682426,144.9,144.87,6.94484856]
[1742933113513,6.9014,144.88,144.87,6.9]
[1742933113711,6.9014,144.88,144.87,6.94618388]
[1742933114113,6.9014,144.88,144.87,0.04618388]
[1742933115412,6.9011,144.89,144.87,0.04618388]
[1742933115614,0.04646674,144.9,144.87,6.94618388]
[1742933115816,0.04646674,144.9,144.87,0.04618388]
[1742933116121,26.74,145.0,144.91,6.8996]
[1742933116417,6.8981,144.95,144.91,26.74]
[1742933116614,6.8981,144.95,144.91,33.6396]
[1742933117216,0.05319191,144.94,144.92,6.94588267]
[1742933118417,6.95179191,144.94,144.92,0.04648267]
[1742933118612,0.05319191,144.94,144.92,0.04648267]
[1742933119517,0.05319191,144.94,144.92,6.94568267]
[1742933121822,356.0,145.05,144.92,0.04648267]
[1742933122016,254.24,145.06,144.92,0.04648267]
[1742933122323,6.895,145.02,144.99,6.8959]
[1742933122821,6.894,145.04,145.01,6.8951]
[1742933123017,0.0467161,145.02,145.01,6.8951]
[1742933123217,0.0467161,145.02,144.99,0.04868901]
[1742933123824,0.0467161,145.02,144.99,6.94478901]
[1742933124117,0.0467161,145.02,144.99,0.04868901]
[1742933125526,0.0467161,145.02,144.99,6.94468901]
[1742933126330,0.0467161,145.02,145.0,6.8955]
[1742933126524,0.0467161,145.02,144.99,0.04868901]
[1742933127025,0.0467161,145.02,144.99,6.94448901]
[1742933127528,0.0467161,145.02,145.0,6.8956]
[1742933128419,0.0467161,145.02,144.99,6.94458901]
[1742933128823,0.0467161,145.02,144.99,0.04868901]
[1742933129223,0.0467161,145.02,145.0,6.8954]
[1742933131228,0.0467161,145.02,144.99,6.94478901]
[1742933132220,0.0467161,145.02,144.99,0.04868901]
[1742933133132,0.0467161,145.02,145.0,6.8954]
[1742933133533,0.0467161,145.02,144.99,6.8954971]
[1742933133931,0.0467161,145.02,145.01,6.8952]
[1742933134131,0.0467161,145.02,145.01,13.74200809]
[1742933136835,0.0467161,145.02,145.01,6.8952]
[1742933139244,0.0467161,145.02,145.0,6.8954]
[1742933139440,0.0467161,145.02,144.99,6.8954971]
[1742933139835,0.0467161,145.02,145.01,6.8952]
[1742933140241,0.0467161,145.02,145.01,13.74200809]
[1742933141638,0.0467161,145.02,145.01,6.8952]
[1742933141838,26.28,145.13,145.06,6.8928]
[1742933142043,6.8921,145.08,145.04,26.28]
[1742933142240,6.8921,145.08,145.05,26.28]
[1742933142441,6.8921,145.08,145.05,33.1731]
[1742933142945,6.94356359,145.08,145.05,33.21862376]
[1742933143247,0.05146359,145.08,145.05,26.32552376]
[1742933143740,0.05146359,145.08,145.07,6.8923]
[1742933145448,6.359e-05,145.08,145.07,6.8923]
[1742933145648,6.889,145.15,145.12,6.8899]
[1742933146344,26.22,145.21,145.11,26.24]
[1742933146847,26.22,145.21,145.15,0.04822007]
[1742933146848,6.8881,145.16,145.15,0.04822007]
[1742933148053,6.88,145.16,145.08,26.18]
[1742933148247,26.22,145.2,145.08,26.18]
[1742933148649,26.22,145.2,145.08,33.0716]
[1742933148650,13.7749,145.18,145.08,33.0716]
[1742933148844,13.7749,145.18,145.08,6.8916]
[1742933149047,13.7749,145.18,145.07,33.1321]
[1742933149245,0.04390999,145.14,145.12,0.04521015]
[1742933149445,13.7749,145.18,145.08,26.24]
[1742933149653,0.04706356,145.14,145.12,0.04818125]
[1742933149848,26.22,145.2,145.12,0.04818125]
[1742933150152,6.8891,145.14,145.12,26.26818125]
[1742933151546,6.8895,145.13,145.12,33.11497324]
[1742933155549,0.04430534,145.14,145.12,33.11497324]
[1742933156151,6.8895,145.13,145.12,33.11497324]
[1742933157254,6.93350534,145.14,145.12,33.11497324]
[1742933158043,6.8895,145.13,145.12,33.11497324]
[1742933158650,6.93350534,145.14,145.12,33.11497324]
[1742933159657,6.8895,145.13,145.12,33.11497324]
[1742933161057,6.8895,145.13,145.12,0.04818125]
[1742933161254,0.04430534,145.14,145.0,586.67913166]
[1742933161458,26.0,145.16,145.04,6.8935]
[1742933161660,26.0,145.16,145.05,26.02]
[1742933161859,6.8923,145.08,145.05,26.02]
[1742933162060,6.8923,145.08,145.05,39.75999199]
[1742933162454,0.05104029,145.08,145.05,26.07269101]
[1742933164661,6.8924,145.07,145.05,32.919483]
[1742933164859,0.05104029,145.08,145.05,26.07269101]
[1742933165568,356.0,145.29,145.06,26.12]
[1742933165859,356.0,145.29,145.06,384.12]
[1742933166163,112.03102619,145.32,145.07,21.94159235]
[1742933166365,112.03102619,145.32,145.08,1.26489235]
[1742933166559,112.03102619,145.32,145.21,6.8854]
[1742933166863,112.03102619,145.32,145.22,26.18]
[1742933166864,0.05221991,145.27,145.22,26.18]
[1742933167061,0.05221991,145.27,145.24,0.05096362]
[1742933169262,0.05221991,145.27,145.24,6.93506362]
[1742933169568,0.05221991,145.27,145.24,0.05096362]
[1742933169966,0.05221991,145.27,145.26,6.8833]
[1742933170162,0.05221991,145.27,145.26,33.0233]
[1742933171564,0.05221991,145.27,145.26,39.8700517]
[1742933174564,1.991e-05,145.27,145.26,33.0233]
[1742933174968,1.991e-05,145.27,145.26,13.7300517]
[1742933175176,1.991e-05,145.27,145.26,39.8100517]
[1742933176169,1.991e-05,145.27,145.26,32.9267517]
[1742933176570,1.991e-05,145.27,145.26,26.08]
[1742933177073,1.991e-05,145.27,145.24,0.05096362]
[1742933179580,6.8837,145.26,145.24,0.05096362]
[1742933180179,1.991e-05,145.27,145.18,253.56]
[1742933180373,26.1,145.28,145.18,260.4067517]
[1742933180879,6.8841,145.25,145.19,6.8865]
[1742933181079,26.1,145.28,145.18,260.4067517]
[1742933181278,0.05229821,145.24,145.22,0.05076941]
[1742933182481,6.93659821,145.24,145.22,0.05076941]
[1742933182982,46.97,145.4,145.23,26.22]
[1742933183280,26.22,145.4,145.23,26.22]
[1742933183876,13.7584,145.35,145.23,26.22]
[1742933184070,6.8822,145.29,145.24,33.2839]
[1742933184272,6.8822,145.29,145.28,0.04573612]
[1742933184477,0.04624802,145.3,145.27,0.04799762]
[1742933184676,6.8822,145.29,145.27,0.04799762]
[1742933184978,6.8822,145.29,145.27,26.44799762]
[1742933185186,0.04624802,145.3,145.27,26.44799762]
[1742933185776,6.92794802,145.3,145.27,26.44799762]
[1742933186582,0.04624802,145.3,145.27,33.33079762]
[1742933186784,0.04624802,145.3,145.27,6.93079762]
[1742933186978,0.04624802,145.3,145.28,26.36]
[1742933187388,0.04624802,145.3,145.28,33.2424]
[1742933187781,0.04624802,145.3,145.28,26.36]
[1742933187983,0.04624802,145.3,145.29,33.2219]
[1742933188979,0.04624802,145.3,145.29,6.8819]
[1742933189274,0.04624802,145.3,145.29,33.2019]
[1742933189881,4.802e-05,145.3,145.29,33.2019]
[1742933190088,26.3,145.41,145.33,6.8798]
[1742933190280,26.3,145.41,145.33,33.1798]
[1742933190482,6.8784,145.37,145.34,6.8795]
[1742933190681,0.89481996,145.43,145.33,26.3]
[1742933190877,356.0,145.54,145.33,33.18]
[1742933191079,186.71837699,145.58,145.34,1.26261299]
[1742933191287,424.89559953,145.59,145.37,0.04360418]
[1742933191478,424.89559953,145.59,145.38,254.28]
[1742933191682,74.84837718,145.59,145.39,1.26261299]
[1742933191877,233.39797124,145.64,145.39,359.26261299]
[1742933192080,233.39797124,145.64,145.39,909.14261299]
[1742933192388,233.39797124,145.64,145.4,15.232378]
[1742933192592,233.39797124,145.64,145.63,6.8658]
[1742933192884,841.48792655,145.74,145.63,41.5058]
[1742933193089,841.48792655,145.74,145.73,6.8611]
[1742933193282,841.48792655,145.74,145.73,35.0211]
[1742933193486,814.92822655,145.74,145.73,35.0211]
[1742933193794,759.99822655,145.74,145.73,35.0211]
[1742933194288,759.99822655,145.74,145.73,41.8811]
[1742933194483,710.33462655,145.74,145.73,41.8811]
[1742933194681,658.08962655,145.74,145.73,41.8811]
[1742933194985,658.08962655,145.74,145.73,6.8611]
[1742933195188,300.08962655,145.74,145.73,35.5011]
[1742933195374,300.08962655,145.74,145.73,400.3611]
[1742933195576,356.0,145.99,145.73,400.3611]
[1742933195577,356.0,145.95,145.73,671.61395084]
[1742933195776,356.0,145.94,145.73,664.75395084]
[1742933195986,36.06,145.93,145.73,664.75395084]
[1742933196183,356.0,145.92,145.73,306.75395084]
[1742933196681,39.14,145.91,145.73,306.77397383]
[1742933196887,39.14,145.91,145.74,105.90075577]
[1742933197083,66.58,145.91,145.74,105.90075577]
[1742933197290,39.1,145.9,145.81,0.04926335]
[1742933197481,356.0,145.89,145.81,0.04926335]
[1742933197679,356.0,145.89,145.74,105.90075577]
[1742933197879,383.44,145.89,145.84,0.04324157]
[1742933198085,383.44,145.89,145.78,39.0]
[1742933198385,383.44,145.89,145.85,0.05103542]
[1742933198790,265.64,145.88,145.82,78.51179119]
[1742933198978,265.64,145.88,145.78,0.02002299]
[1742933199183,6.8583,145.79,145.78,2.299e-05]
[1742933199486,39.5,145.8,145.73,172.21319507]
[1742933199687,6.8602,145.75,145.73,172.21319507]
[1742933199888,0.05213698,145.78,145.75,0.05236225]
[1742933200092,16.53381379,145.78,145.75,0.05236225]
[1742933200282,6.8605,145.75,145.73,172.21319507]
[1742933200482,23.39381379,145.78,145.73,161.16539507]
[1742933200788,6.8607,145.74,145.73,161.16539507]
[1742933200991,13.7207,145.74,145.73,161.16539507]
[1742933201185,308.13832039,145.77,145.67,0.03674599]
[1742933201385,308.13832039,145.77,145.72,7.09e-05]
[1742933201584,0.05186886,145.73,145.72,7.09e-05]
[1742933201780,39.43186886,145.73,145.72,7.09e-05]
[1742933202094,46.24,145.73,145.67,1.689e-05]
[1742933202286,39.38,145.73,145.67,1.689e-05]
[1742933202482,46.2411,145.73,145.72,161.25335706]
[1742933202791,308.13832039,145.72,145.62,378.6627456]
[1742933203183,6.8658,145.63,145.62,378.6627456]
[1742933203380,182.02225864,145.67,145.62,378.6627456]
[1742933203584,182.02225864,145.67,145.62,368.11342101]
[1742933203784,6.8658,145.63,145.62,325.03052101]
[1742933203995,6.8658,145.63,145.62,308.20112101]
[1742933204190,13.7258,145.63,145.62,106.65655681]
[1742933204589,13.7258,145.63,145.62,34.24395681]
[1742933204988,6.86,145.63,145.62,34.24395681]
[1742933205591,356.0,145.62,145.51,292.94572101]
[1742933205887,395.26,145.61,145.51,251.34182101]
[1742933206092,395.24,145.6,145.58,271.88537339]
[1742933206289,395.24,145.59,145.49,0.12382096]
[1742933206493,139.9156568,145.67,145.49,2.096e-05]
[1742933206494,621.76,145.58,145.49,2.096e-05]
[1742933206691,6.872,145.5,145.49,2.096e-05]
[1742933206893,46.092,145.5,145.49,2.096e-05]
[1742933207195,52.972,145.5,145.49,2.096e-05]
[1742933207396,6.8724,145.49,145.48,3.361e-05]
[1742933207785,6.88,145.49,145.41,1.37542122]
[1742933207985,226.64,145.48,145.41,1.37542122]
[1742933208498,6.8739,145.46,145.41,1.37542122]
[1742933208696,0.04353895,145.46,145.43,0.04870886]
[1742933209686,6.91743895,145.46,145.43,0.04870886]
[1742933209887,0.04353895,145.46,145.43,0.04870886]
[1742933210291,356.0,145.6,145.43,0.04870886]
[1742933210491,38.9,145.58,145.43,0.04870886]
[1742933210698,38.9,145.58,145.41,38.9]
[1742933210892,38.9,145.58,145.43,6.8753]
[1742933211197,356.0,145.59,145.41,59.5]
[1742933211492,6.8714,145.52,145.42,7.26358905]
[1742933211693,0.04497426,145.51,145.49,0.05176865]
[1742933211894,0.04497426,145.51,145.46,38.78]
[1742933212092,356.0,145.59,145.49,0.04856055]
[1742933212293,0.05007142,145.5,145.49,0.04856055]
[1742933212595,45.6083,145.58,145.48,0.05170039]
[1742933212792,0.05140044,145.51,145.48,0.05170039]
[1742933212995,226.64,145.6,145.48,6.8725]
[1742933213194,0.05242619,145.51,145.48,6.91746398]
[1742933213388,226.64,145.6,145.48,6.8725]
[1742933213594,233.5075,145.6,145.48,0.04348736]
[1742933213788,233.5075,145.6,145.46,38.78]
[1742933213994,226.64,145.6,145.47,7.26743933]
[1742933214195,6.8684,145.58,145.47,7.26743933]
[1742933214389,6.8684,145.58,145.47,27.86743933]
[1742933214589,0.03981996,145.54,145.51,0.04944656]
[1742933214996,226.64,145.6,145.46,38.78]
[1742933215190,0.03981996,145.54,145.51,0.04578782]
[1742933215402,226.64,145.6,145.46,59.38]
[1742933215700,0.03981996,145.54,145.51,0.0441397]
[1742933215892,6.91011996,145.54,145.51,0.0441397]
[1742933216199,0.03981996,145.54,145.51,0.05024997]
[1742933218800,0.03981996,145.54,145.51,20.65024997]
[1742933219100,0.03981996,145.54,145.51,0.05024997]